Cogmind - Beta 13 @@@ ROGUE MODE // 2024.04.01 @ 21:49:46 Player: SuperDrops Result: Destroyed by S-10 Pest with Light Assault Rifle Performance ------------- Evolutions (0) 0 Regions Visited (3) 600 Robots Destroyed (23) 115 Value Destroyed (604) 604 Prototype IDs (0) 0 Alien Tech Used (0) 0 Bonus (-15) -15 TOTAL SCORE: 1304 Bonus ------- Follower Combat Kills 7 Friendly Fire -22 Cogmind --------- Core Integrity 0/250 Matter 230/300 Energy 200/200 System Corruption 0% Temperature Cool (0) Movement Rolling (110) Location -10/Subcaves Parts ------- > --- POWER (1) -------- Subdweller Power Source > --- PROPULSION (2) --- Subdweller Monowheel > --- UTILITY (2) ------ Signal Interpreter > --- WEAPON (2) ------- Battle Rifle > --- INVENTORY (5) ---- Light Ion Engine Subdweller Power Source Aluminum Leg Mining Laser Peak State ------------ > --- POWER ------------ Ion Engine > --- PROPULSION ------- Light Treads Light Treads > --- UTILITY ---------- Signal Interpreter Propulsion Shielding > --- WEAPON ----------- Light Cannon Plasma Flamer > --- INVENTORY -------- Light Ion Engine Aluminum Leg Light Cannon Grenade Launcher Mining Laser [Rating: 11] Favorites ----------- Power Ion Engine Engine Ion Engine Propulsion Light Treads Treads Light Treads Wheel Subdweller Monowheel Utility Signal Interpreter Storage Small Storage Unit Processor Signal Interpreter Protection Propulsion Shielding Weapon Light Cannon Ballistic Gun Assault Rifle Ballistic Cannon Light Cannon Launcher Grenade Launcher Special Weapon Plasma Flamer Build | -11 -10 -10 -10 ------- Run | Yrd Mat Min Sub Slots Evolved . | . . . . Power . | . . . . Propulsion . | . . . . Utility . | . . . . Weapon . | . . . . Parts Attached 17 | 6 4 2 5 Power 3 | 1 . . 2 Engine 3 | 1 . . 2 Core . | . . . . Reactor . | . . . . Propulsion 3 | 2 . . 1 Treads 2 | 2 . . . Leg . | . . . . Wheel 1 | . . . 1 Hover . | . . . . Flight . | . . . . Utility 3 | 1 2 . . Device . | . . . . Storage 1 | 1 . . . Processor 1 | . 1 . . Hackware . | . . . . Protection 1 | . 1 . . Artifact . | . . . . Weapon 8 | 2 2 2 2 Energy Gun . | . . . . Energy Cannon . | . . . . Ballistic Gun 3 | 2 . . 1 Ballistic Cannon 3 | . 2 . 1 Launcher 1 | . . 1 . Special Weapon 1 | . . 1 . Impact Weapon . | . . . . Slashing Weapon . | . . . . Piercing Weapon . | . . . . Special Melee Weapon . | . . . . Unidentified Prototypes . | . . . . Parts Lost 8 | . . 3 5 Power 1 | . . . 1 Propulsion 2 | . . . 2 Utility 1 | . . 1 . Weapon 4 | . . 2 2 Highest Loss Streak 3 | . . 3 3 To Critical Strikes . | . . . . Average Slot Usage (%) 91 | . 96 97 56 Engine 13 | . 14 14 10 Treads 26 | . 28 28 17 Storage 1 | . 8 . . Processor 12 | . 5 14 14 Protection 10 | . 10 12 . Ballistic Gun 1 | . 8 . 1 Ballistic Cannon 15 | . 18 17 . Launcher 2 | . . 1 12 Special Weapon 5 | . . 8 . Naked Turns . | . . . . Heaviest Build 17 | 13 17 12 8 Greatest Support 40 | 40 40 40 40 Greatest Overweight (x) 2 | . . . 2 Average Overweight (x) . | . . . . Largest Inventory Capacity 8 | 8 8 5 5 Average Capacity 5 | 6 6 5 5 Most Carried 8 | 6 8 5 5 Average Carried 4 | 2 5 4 3 Final Capacity 8 | 8 5 5 5 Final Carried 6 | 6 4 4 4 Class Distribution -------------------- 100% | Mutant Dominant Class ---------------- Mutant | -10/Materials Mutant | -10/Mines Mutant | -10/Subcaves Resources | -11 -10 -10 -10 ----------- Run | Yrd Mat Min Sub Matter Collected 620 | 196 176 172 76 Remotely . | . . . . Salvage Created 640 | . 248 250 142 Parts 42 | . 17 12 13 Haulers Intercepted . | . . . . Recyclers Shooed 3 | . 2 1 . Parts Field Recycled . | . . . . Retrieved Matter . | . . . . Parts Self-Destructed . | . . . . Prevented . | . . . . Kills | -11 -10 -10 -10 ------- Run | Yrd Mat Min Sub Combat Hostiles Destroyed 18 | . 2 11 5 Guns 2 | . . . 2 Cannons 12 | . 2 9 1 AOE 4 | . . 2 2 Classes Destroyed 6 | . 4 1 1 Recycler 3 | . 2 1 . Operator 1 | . 1 . . Watcher 1 | . 1 . . Swarmer 6 | . . 5 1 Grunt 8 | . 2 6 . Subdweller 4 | . . . 4 Best Kill Streak 5 | . 5 3 2 Combat Bots Only 3 | . 2 3 2 Max Kills in Single Turn 2 | . 1 2 1 Gunslinging . | . . . . Exploded 1 | . . 1 1 Melee . | . . . . Uniques/NPCs Destroyed . | . . . . Combat | -11 -10 -10 -10 -------- Run | Yrd Mat Min Sub Hostile Shots Fired 94 | . 14 48 32 Missed 17 | . 2 5 10 Damage Taken 1084 | . 153 554 377 Core 250 | . 11 73 166 Absorbed by Shields . | . . . . Redirected to Shielding 52 | . 16 36 . Core Remaining (%) 100 | 100 . . . Volleys Fired 53 | . 12 29 12 Largest 2 | . 2 2 1 Hottest 135 | . 70 135 35 Shots Fired 91 | . 24 55 12 Gun 4 | . . . 4 Cannon 61 | . 24 34 3 Launcher 7 | . . 2 5 Special 19 | . . 19 . Kinetic 65 | . 24 34 7 Thermal 19 | . . 19 . Explosive 7 | . . 2 5 Electromagnetic . | . . . . Robot Hit Streak 8 | . 3 8 4 Robot Miss Streak 5 | . 5 3 2 Penetration Max . | . . . . Secondary Targets . | . . . . Shots Hit Robots 52 | . 11 35 6 Core Hits 34 | . 7 15 12 Critical Kills . | . . . . Critical Parts Destroyed . | . . . . Critical Strikes 2 | . . 2 . Burn 1 | . . 1 . Blast 1 | . . 1 . Melee Attacks . | . . . . Impact . | . . . . Slashing . | . . . . Piercing . | . . . . Sneak Attacks . | . . . . Combat Hostiles . | . . . . Follow-up Attacks . | . . . . Damage Inflicted 1258 | . 217 724 317 Guns 35 | . . . 35 Cannons 709 | . 210 465 34 Explosions 345 | . . 102 243 Melee . | . . . . Ramming 28 | . 7 16 5 Kinetic 744 | . 210 465 69 Thermal 141 | . . 141 . Explosive 345 | . . 102 243 Electromagnetic . | . . . . Impact . | . . . . Slashing . | . . . . Piercing . | . . . . Highest Corruption . | . . . . Average Corruption . | . . . . Corruption Purged . | . . . . Corruption Blocked . | . . . . Overload Shots . | . . . . Overflow Damage 18 | . . 17 1 Projectiles 17 | . . 17 . Explosions 1 | . . . 1 Melee . | . . . . Knockbacks 10 | . 1 8 1 Impact . | . . . . Kinetic 9 | . 1 7 1 Secondary 1 | . . 1 . Self-Inflicted Damage 76 | . . 50 26 Shots 4 | . . 2 2 Rammed 6 | . 1 4 1 Targets Rammed 6 | . 1 4 1 Kicked . | . . . . Crushed . | . . . . Highest Temperature 501 | . 58 501 . Average Temperature 163 | . 25 199 . Received Heat Transfer 387 | . 87 246 54 Effects 6 | . . 6 . Shutdowns 2 | . . 2 . Energy Bleed 3 | . . 3 . Matter Decay 1 | . . 1 . Siege Activations . | . . . . Robots Corrupted . | . . . . Combat Hostiles . | . . . . Parts Fried . | . . . . Impact Corruptions . | . . . . Robots Melted . | . . . . Combat Hostiles . | . . . . Parts Melted 1 | . . 1 . Heat Transferred 1040 | . . 1040 . Parts Sabotaged . | . . . . Parts Stolen . | . . . . Parts Stripped . | . . . . Power Chain Reactions . | . . . . Alert | -11 -10 -10 -10 ------- Run | Yrd Mat Min Sub Peak Influence 137 | . 102 137 . Initial 39 | . . 39 . Average 46 | . 39 51 . Maximum Alert Level . | . . . . Low Security (%) 100 | 100 100 100 . Level 1 . | . . . . Level 2 . | . . . . Level 3 . | . . . . Level 4 . | . . . . Level 5 . | . . . . High Security . | . . . . Max Security . | . . . . Squads Dispatched . | . . . . Investigation . | . . . . Extermination . | . . . . Reinforcement . | . . . . Assault . | . . . . Garrison . | . . . . Intercept . | . . . . Searches Triggered . | . . . . Construction Impeded . | . . . . Haulers Reinforced . | . . . . Active Scanning Responses . | . . . . Cargo Convoy Interrupts . | . . . . Stealth | -11 -10 -10 -10 --------- Run | Yrd Mat Min Sub Distress Signals 1 | . 1 . . Communications Jammed . | . . . . Distress Signals . | . . . . Times Spotted 28 | . 6 12 10 Peak Tracking Total 6 | . 5 3 6 Tactical Retreats 1 | . . . 1 Traps | -11 -10 -10 -10 ------- Run | Yrd Mat Min Sub Traps Triggered . | . . . . Indirectly . | . . . . Trap Hack Attempts . | . . . . Triggered . | . . . . Disarmed . | . . . . Reprogrammed . | . . . . Reused . | . . . . Traps Extracted . | . . . . Installed . | . . . . Triggered . | . . . . Machines | -11 -10 -10 -10 ---------- Run | Yrd Mat Min Sub Machines Disabled 1 | . . 1 . Max in Single Turn 1 | . . 1 . Machines Repaired . | . . . . Machines Dismantled . | . . . . Machines Sabotaged . | . . . . Overloaded Fab Kills . | . . . . Hacking | -11 -10 -10 -10 --------- Run | Yrd Mat Min Sub Machines Accessed . | . . . . Terminals . | . . . . Fabricators . | . . . . Repair Stations . | . . . . Recycling Units . | . . . . Scanalyzers . | . . . . Garrison Access . | . . . . Total Hacks . | . . . . Successful . | . . . . Failed . | . . . . Catastrophic . | . . . . Database Lockouts . | . . . . Manual . | . . . . Terminals . | . . . . Fabricators . | . . . . Repair Stations . | . . . . Recycling Units . | . . . . Scanalyzers . | . . . . Garrison Access . | . . . . Terminal Hacks . | . . . . Fabricator Hacks . | . . . . Repair Station Hacks . | . . . . Recycling Unit Hacks . | . . . . Scanalyzer . | . . . . Garrison Access Hacks . | . . . . Unauthorized Hacks . | . . . . Terminals . | . . . . Fabricators . | . . . . Repair Stations . | . . . . Recycling Units . | . . . . Scanalyzers . | . . . . Garrison Access . | . . . . Data Cores Recovered 1 | . 1 . . Used . | . . . . Hacking Detections . | . . . . Full Trace Events . | . . . . Feedback Events . | . . . . Feedback Blocked . | . . . . Robot Schematics Acquired . | . . . . Robots Built . | . . . . Authchips . | . . . . Time . | . . . . Total Robot Build Rating . | . . . . Part Schematics Acquired . | . . . . Parts Built . | . . . . Authchips . | . . . . Time . | . . . . Total Part Build Rating . | . . . . Parts Repaired . | . . . . Time . | . . . . Parts Recycled . | . . . . Recycled Matter . | . . . . Retrieved Matter . | . . . . Retrieved Components . | . . . . Parts Scanalyzed . | . . . . Part Schematics Acquired . | . . . . Parts Damaged . | . . . . Bothacking | -11 -10 -10 -10 ------------ Run | Yrd Mat Min Sub Used RIF Installer . | . . . . Robots Hacked . | . . . . Non-combat . | . . . . Combat . | . . . . Robot Hacks Applied . | . . . . Relay Couplers Released . | . . . . Fabnet Peak Effective % . | . . . . Robots Rewired . | . . . . Allies Hacked . | . . . . Hacks Repelled . | . . . . Allies | -11 -10 -10 -10 -------- Run | Yrd Mat Min Sub Total Allies 2 | . . 2 . Largest Group 2 | . . 2 1 Highest-Rated Group 41 | . . 41 10 Highest-Rated Ally 31 | . . 31 10 Total Orders . | . . . . Ally Attacks 11 | . . 11 . Total Damage 148 | . . 148 . Kills 1 | . . 1 . Allies Corrupted . | . . . . Allies Melted . | . . . . Intel | -11 -10 -10 -10 ------- Run | Yrd Mat Min Sub Robot Analysis Total . | . . . . Derelict Logs Recovered 2 | . . 1 1 Drone Launches . | . . . . Drone Recoveries . | . . . . Exploration | -11 -10 -10 -10 ------------- Run | Yrd Mat Min Sub Turns Passed 2475 | 98 360 1661 356 Spaces Moved 1329 | 54 195 771 309 Core 153 | 5 . . 148 Treads 1153 | 49 195 771 138 Legs . | . . . . Wheels 23 | . . . 23 Hover . | . . . . Flight . | . . . . Fastest Speed 50 | 50 160 160 50 Average Speed 146 | 149 160 160 104 Slowest Speed 160 | 160 160 160 160 Overloaded Moves . | . . . . Propulsion Burnouts . | . . . . Robots Hopped . | . . . . Cave-ins Triggered . | . . . . Exploration Rate (%) 45 | 4 42 102 32 Regions Visited 3 Branch Regions 2 Pre-discovered Areas . | . . . . Known Exits Taken 2 | . 1 1 . Unknown Exits Taken 1 | 1 . . . Scrap Searched 1 | . . 1 . Spaces Dug . | . . . . Terrain Destroyed 38 | . . 12 26 Melee . | . . . . Projectile . | . . . . AOE 38 | . . 12 26 Terrain Rammed . | . . . . Walls Destroyed . | . . . . Machines Disabled . | . . . . Actions | -11 -10 -10 -10 --------- Run | Yrd Mat Min Sub Total 1752 | 71 219 1131 331 Wait 325 | . . 325 . Move 1326 | 53 194 770 309 Hop . | . . . . Pick Up 21 | 12 4 1 4 Fast Attach 2 | . 2 . . Attach 12 | 6 1 1 4 Detach . | . . . . Swap 3 | . 1 1 1 Drop 4 | . 4 . . Fire 53 | . 12 29 12 Melee . | . . . . Ram 1 | . . . 1 Kick . | . . . . Crush 5 | . 1 4 . Escape Stasis . | . . . . Rewire . | . . . . Trap . | . . . . Miscellaneous . | . . . . Route ------- -11/Scrapyard -10/Materials -10/Mines (discovered 3 exits: *Mat x2 / *Sub) -10/Subcaves (discovered 1 exit: *Mat) History --------- Turn | Location | Event 20 | -11/Scrapyard | Discovered new exit (range 14) 99 | -11/Scrapyard | Entered Materials 313 | -10/Materials | Build established: Mutant 336 | -10/Materials | Discovered new exit (range 12) 447 | -10/Materials | Identified exit to Mines 459 | -10/Materials | Entered Mines 528 | -10/Mines | Identified exit to Materials 895 | -10/Mines | Found a hidden stash of uninstalled traps 1008 | -10/Mines | A weapon hastily lodged in a ceiling crevice suddenly fell to the ground 1951 | -10/Mines | Discovered exit to Materials (range 8) 2008 | -10/Mines | Lost 3 parts (1u2w) 2083 | -10/Mines | Discovered new exit (range 11) 2097 | -10/Mines | Identified exit to Subcaves 2120 | -10/Mines | Entered Subcaves 2120 | -10/Subcaves | Accompanied by 1 ally 2172 | -10/Subcaves | Learned 2 Materials zone layouts 2344 | -10/Subcaves | Core integrity fell below 50% 2376 | -10/Subcaves | Lost 3 parts (1p2n) 2392 | -10/Subcaves | Discovered new exit (range 14) 2398 | -10/Subcaves | Identified exit to Materials 2401 | -10/Subcaves | Shifting Twisted Machinery released Humpback 2405 | -10/Subcaves | Shifting Twisted Machinery released Scrap Shield 2434 | -10/Subcaves | Core integrity fell below 20% 2476 | -10/Subcaves | Destroyed by S-10 Pest with Light Assault Rifle Last Messages --------------- The unstable cave ceiling collapses. Acquired 21 matter. Acquired 19 matter. Subatomizers dissect the Disposable Heat Sink. EXIT=FOUND EXIT=IDENTIFIED: MATERIALS Humpback falls loose from the Twisted Machinery. Scrap Shield falls loose from the Twisted Machinery. Grenade Launcher destroyed. 2H-98L(R) destroyed. IY-JVM(R) knocked back. Lgt. Cannon destroyed. Acquired 36 matter. Slammed into IY-JVM(R). Acquired Battle Rifle. IY-JVM(R) destroyed. Acquired Sub. Power Source. Acquired Sub. Monowheel. S-10 Pest destroyed. Map ----- +----------------------------------------------------+ | ?????????????????????????????????????????????????? | | ?????????????????????????????????????????????????? | | ?????????????????????????????????????????????????? | | ?????????????????????????????????????????????????? | | ?????????????????????????????????????????????????? | | ?????????????????????????????????????????????????? | | ?????????????????????????????????????????????????? | | ?????????????????????????????????????????? ?????? | | ?????????????????????????????????????????? "?????? | | ???????????????????????????????????????# ""?????# | | ???????????????????""?????????????????## "" ????? | | ?????????????????" " ????????????????? "" ?#### | | ?????????????????? ??????????????????"" ?# | | ?????????????????? ??????????????????? ## | | ??????????????????? ?????????????####???# | | ??????????????????? ?????????????# ##???# | | ??????????????????## ???###??????#" ##### | | ??????????????????? ??## #?###### " # | | ???????????????????# ?## ### ## " | | ???????????????????# ?# ## "" !"" | | ??????????????????## ?# z "" % !"" "# | | ?????????????????## s## ## "" ! """ | | ????????# #### s ### ### !%# # | | ????????# s%= #?# # !## #??#### | | ????????#% = ### ###????##"" | | ???????? @ ## ###?????#""" | | ???????? % ### # ### ###"""#""" | | ??????????????#### ## ## #?# """" "" | | ?????????????????## #### ## #?## ###" "" | | ??????????????????## ## #??##### #??#####???# ""# | | ???????????????????##?###??????## #??????????####? | | ????????????????????????????????###??????????????? | | ?????????????????????????????????????????????????? | | ?????????????????????????????????????????????????? | | ?????????????????????????????????????????????????? | | ?????????????????????????????????????????????????? | | ?????????????????????????????????????????????????? | | ?????????????????????????????????????????????????? | | ?????????????????????????????????????????????????? | | ?????????????????????????????????????????????????? | | ?????????????????????????????????????????????????? | | ?????????????????????????????????????????????????? | | ?????????????????????????????????????????????????? | | ?????????????????????????????????????????????????? | | ?????????????????????????????????????????????????? | | ?????????????????????????????????????????????????? | | | | | | | | | +----------------------------------------------------+ Best States ------------- Heat Dissipation 25 Energy Generation 15 Energy Capacity 250 Matter Stores 300 Matter Capacity 300 Sight Range 16 Terrain Scan Density 10 Propulsion Shielding 33 Evasion (%) 50 Recoil Reduction 2 Item Schematics ----------------- None Robot Schematics ------------------ None Fabricated ------------ Nothing Alien Tech Used ----------------- None Achievements -------------- None Challenges ------------ None Game ------ Seed PulseWeldingDisintegrator Manual? 0 Play Time 00:16:01 Cumulative 7.2 hours Start 2024.04.01 @ 21:36:46 End 2024.04.01 @ 21:49:46 Sessions 1 Manual Loads 0 Difficulty Rogue Special Mode None Game No. 25 Rogue 25 Adventurer 0 Explorer 0 Win Type - Total 0 Types 0/0/0/0/0/0/0/0/0 Lore% 13 Gallery% 8 Achievement% 8 Wizard Run 0 Options --------- Layout 1 ASCII 0 Keyboard 0 Movement Mouse Keybinds 0 Fullscreen 2 Font 24/Proggy Map View 50x35 Zoom Use 0% Tactical HUD 0 Map Filters NONE Filters NONE Steam 1 RUN: e7c18d01-faaf-421d-bcb1-0aec640ce9ae